Cogmind - Beta 15 @@@ ROGUE MODE // 2025.07.04 @ 11:22:47 Player: f3-rnm Result: Destroyed by ZP-7GJ(R) with Subdweller Laser Performance ------------- Evolutions (0) 0 Regions Visited (2) 400 Robots Destroyed (9) 45 Value Destroyed (330) 330 Prototype IDs (0) 0 Alien Tech Used (0) 0 Bonus (0) 0 TOTAL SCORE: 775 Bonus ------- None Cogmind --------- Core Integrity 0/250 Matter 266/300 Energy 124/125 System Corruption 0% Temperature Cool (12) Movement Treading (160) Location -10/Subcaves Parts ------- > --- POWER (1) -------- Light Ion Engine > --- PROPULSION (2) --- Light Treads Light Treads > --- UTILITY (2) ------ Large Storage Unit Improved Targeting Computer > --- WEAPON (2) ------- Light Assault Rifle Flamer > --- INVENTORY (15) --- Wheel Compact Wheel Heat Sink Small Matter Pod (0) Medium Matter Pod (0) Large Matter Pod (0) High-capacity Matter Pod (0) Improved Targeting Computer Improved Targeting Computer Small Laser Subdweller Laser Rocket Launcher Rocket Launcher Rocket Launcher Peak State ------------ > --- POWER ------------ Light Ion Engine > --- PROPULSION ------- Light Treads Light Treads > --- UTILITY ---------- Large Storage Unit Improved Targeting Computer > --- WEAPON ----------- Light Assault Rifle Flamer > --- INVENTORY -------- Wheel Compact Wheel Heat Sink Small Matter Pod Medium Matter Pod Large Matter Pod High-capacity Matter Pod Improved Targeting Computer Improved Targeting Computer Small Laser Subdweller Laser Rocket Launcher Rocket Launcher Rocket Launcher [Rating: 11] Favorites ----------- Power Light Ion Engine Engine Light Ion Engine Propulsion Light Treads Treads Light Treads Utility Large Storage Unit Storage Large Storage Unit Processor Improved Targeting Computer Weapon Light Assault Rifle Energy Gun EM Pulse Gun Ballistic Gun Light Assault Rifle Launcher Rocket Launcher Special Weapon Flamer Build | -11 -10 -10 ------- Run | Yrd Mat Sub Slots Evolved . | . . . Power . | . . . Propulsion . | . . . Utility . | . . . Weapon . | . . . Parts Attached 13 | 5 6 2 Power 2 | 1 1 . Engine 2 | 1 1 . Core . | . . . Reactor . | . . . Propulsion 3 | 2 1 . Treads 3 | 2 1 . Leg . | . . . Wheel . | . . . Hover . | . . . Flight . | . . . Utility 3 | 1 2 . Device . | . . . Storage 2 | 1 1 . Processor 1 | . 1 . Hackware . | . . . Protection . | . . . Artifact . | . . . Weapon 5 | 1 2 2 Energy Gun 2 | . 2 . Energy Cannon . | . . . Ballistic Gun 1 | 1 . . Ballistic Cannon . | . . . Launcher 1 | . . 1 Special Weapon 1 | . . 1 Impact Weapon . | . . . Slashing Weapon . | . . . Piercing Weapon . | . . . Special Melee Weapon . | . . . Unidentified Prototypes . | . . . Parts Lost 4 | . 4 . Power 1 | . 1 . Propulsion 1 | . 1 . Utility . | . . . Weapon 2 | . 2 . Highest Loss Streak 3 | . 3 . To Critical Strikes . | . . . Average Backups 11 | 2 11 12 Power . | . . . Propulsion 2 | . 2 2 Utility 5 | . 5 7 Weapon 2 | 1 2 3 Tool/Special . | . . . Unused Backups 13 | . . 13 Power . | . . . Propulsion 2 | . . 2 Utility 7 | . . 7 Weapon 4 | . . 4 Tool/Special . | . . . Average Slot Usage (%) 94 | . 95 94 Engine 14 | . 14 14 Treads 28 | . 28 28 Storage 15 | . 16 14 Processor 11 | . 9 14 Energy Gun 5 | . 11 . Ballistic Gun 14 | . 14 14 Launcher 1 | . . 2 Special Weapon 3 | . . 6 Peak Build Rating 11 | 5 9 11 Average Rating 8 | 4 8 9 On Entrance 4 | . 5 8 Naked Turns . | . . . Heaviest Build 31 | 9 31 28 Greatest Support 40 | 40 40 40 Greatest Overweight (x) 1 | 1 . . Average Overweight (x) . | . . . Largest Inventory Capacity 15 | 8 15 15 Average Capacity 14 | 7 14 15 Most Carried 14 | 5 14 14 Average Carried 11 | 2 11 12 Final Capacity 15 | 8 15 15 Final Carried 14 | 5 12 14 Class Distribution -------------------- 100% | Mutant Dominant Class ---------------- Mutant | -10/Materials Mutant | -10/Subcaves Resources | -11 -10 -10 ----------- Run | Yrd Mat Sub Matter Collected 311 | 154 76 81 Remotely . | . . . Salvage Created 399 | . 267 132 Parts 22 | . 16 6 Haulers Intercepted . | . . . Recyclers Shooed . | . . . Parts Field Recycled . | . . . Retrieved Matter . | . . . Parts Self-Destructed 12 | . . 12 Prevented . | . . . Kills | -11 -10 -10 ------- Run | Yrd Mat Sub Combat Hostiles Destroyed 7 | . 4 3 Guns 3 | . 1 2 Cannons 1 | . . 1 AOE 3 | . 3 . Classes Destroyed 3 | . 2 1 Recycler 2 | . 2 . Grunt 6 | . 4 2 Sentry 1 | . . 1 Best Kill Streak 6 | . 6 2 Combat Bots Only 4 | . 4 2 Max Kills in Single Turn 3 | . 3 1 Gunslinging . | . . . Exploded 2 | . 2 . Melee . | . . . Uniques/NPCs Destroyed . | . . . Combat | -11 -10 -10 -------- Run | Yrd Mat Sub Hostile Shots Fired 61 | . 39 22 Missed 18 | . 12 6 Hits 43 | . 27 16 Projectile 43 | . 27 16 Critical Strikes 2 | . 2 . Damage Taken 855 | . 630 225 Core 269 | . 165 104 Absorbed by Shields . | . . . Core Remaining (%) 100 | 100 . . Volleys Fired 27 | 1 12 14 Largest 2 | 1 2 2 Hottest 120 | 20 60 120 Shots Fired 45 | 1 22 22 Gun 36 | 1 22 13 Cannon . | . . . Launcher 1 | . . 1 Special 8 | . . 8 Kinetic 24 | 1 10 13 Thermal 8 | . . 8 Explosive 1 | . . 1 Electromagnetic 12 | . 12 . Robot Hit Streak 10 | 1 3 10 Robot Miss Streak 3 | . 3 1 Penetration Max . | . . . Secondary Targets . | . . . Shots Hit Robots 27 | 1 8 18 Core Hits 19 | 1 10 8 Critical Kills . | . . . Critical Parts Destroyed . | . . . Critical Strikes 1 | . . 1 Burn 1 | . . 1 Melee Attacks . | . . . Impact . | . . . Slashing . | . . . Piercing . | . . . Sneak Attacks . | . . . Combat Hostiles . | . . . Follow-up Attacks . | . . . Damage Inflicted 699 | 7 512 180 Guns 216 | 7 109 100 Cannons . | . . . Explosions 403 | . 403 . Melee . | . . . Ramming . | . . . Kinetic 149 | 7 42 100 Thermal 483 | . 403 80 Explosive . | . . . Electromagnetic 67 | . 67 . Impact . | . . . Slashing . | . . . Piercing . | . . . Highest Corruption . | . . . Average Corruption . | . . . Corruption Purged . | . . . Corruption Blocked . | . . . Overload Shots . | . . . Overflow Damage 22 | . 22 . Projectiles . | . . . Explosions 22 | . 22 . Melee . | . . . Knockbacks . | . . . Impact . | . . . Kinetic . | . . . Secondary . | . . . Self-Inflicted Damage 167 | . 167 . Shots 2 | . 2 . Rammed . | . . . Targets Rammed . | . . . Kicked . | . . . Crushed . | . . . Highest Temperature 97 | . 97 12 Average Temperature 34 | . 44 7 Received Heat Transfer 312 | . 204 108 Siege Activations . | . . . Martial Activations . | . . . Shielding Activations . | . . . Robots Disrupted . | . . . Combat Hostiles . | . . . Robots Corrupted . | . . . Combat Hostiles . | . . . Parts Fried . | . . . Impact Corruptions . | . . . Robots Melted . | . . . Combat Hostiles . | . . . Parts Melted . | . . . Heat Transferred 1070 | . 350 720 Parts Sabotaged . | . . . Parts Stolen . | . . . Parts Stripped . | . . . Power Chain Reactions 1 | . 1 . Alert | -11 -10 -10 ------- Run | Yrd Mat Sub Maximum Alert Level . | . . . Low Security (%) 100 | 100 100 . Level 1 . | . . . Level 2 . | . . . Level 3 . | . . . Level 4 . | . . . Level 5 . | . . . High Security . | . . . Max Security . | . . . Peak Influence 178 | . 178 . Initial . | . . . Average 54 | . 65 . Influence Increases 268 | . 198 70 Destroy 0b10 Robot/C 140 | . 80 60 Destroy 0b10 Robot/NC 10 | . 10 . Destroy Leader 30 | . 20 10 Disable Machine 45 | . 45 . Destroy Structure 43 | . 43 . Influence Decreases 268 | . 198 70 Time Decay 258 | . 188 70 Lost Part 10 | . 10 . Squads Dispatched . | . . . Investigation . | . . . Extermination . | . . . Reinforcement . | . . . Assault . | . . . Garrison . | . . . Intercept . | . . . Searches Triggered . | . . . Construction Impeded . | . . . Haulers Reinforced . | . . . Active Scanning Responses . | . . . Cargo Convoy Interrupts . | . . . Stealth | -11 -10 -10 --------- Run | Yrd Mat Sub Distress Signals 1 | . 1 . Communications Jammed . | . . . Distress Signals . | . . . Times Spotted 15 | . 10 5 Peak Tracking Total 4 | . 4 2 Tactical Retreats . | . . . Traps | -11 -10 -10 ------- Run | Yrd Mat Sub Traps Triggered . | . . . Indirectly . | . . . Trap Hack Attempts . | . . . Triggered . | . . . Disarmed . | . . . Reprogrammed . | . . . Reused . | . . . Traps Extracted . | . . . Installed . | . . . Triggered . | . . . Machines | -11 -10 -10 ---------- Run | Yrd Mat Sub Machines Disabled 3 | . 3 . Max in Single Turn 3 | . 3 . Machines Repaired . | . . . Machines Dismantled . | . . . Machines Sabotaged . | . . . Overloaded Fab Kills . | . . . Hacking | -11 -10 -10 --------- Run | Yrd Mat Sub Machines Accessed . | . . . Terminals . | . . . Fabricators . | . . . Repair Stations . | . . . Recycling Units . | . . . Scanalyzers . | . . . Garrison Access . | . . . Total Hacks . | . . . Successful . | . . . Failed . | . . . Catastrophic . | . . . Database Lockouts . | . . . Manual . | . . . Terminals . | . . . Fabricators . | . . . Repair Stations . | . . . Recycling Units . | . . . Scanalyzers . | . . . Garrison Access . | . . . Terminal Hacks . | . . . Fabricator Hacks . | . . . Repair Station Hacks . | . . . Recycling Unit Hacks . | . . . Scanalyzer . | . . . Garrison Access Hacks . | . . . Unauthorized Hacks . | . . . Terminals . | . . . Fabricators . | . . . Repair Stations . | . . . Recycling Units . | . . . Scanalyzers . | . . . Garrison Access . | . . . Data Cores Recovered . | . . . Used . | . . . Hacking Detections . | . . . Full Trace Events . | . . . Feedback Events . | . . . Feedback Blocked . | . . . Robot Schematics Acquired . | . . . Robots Built . | . . . Authchips . | . . . Time . | . . . Total Robot Build Rating . | . . . Part Schematics Acquired . | . . . Parts Built . | . . . Authchips . | . . . Time . | . . . Total Part Build Rating . | . . . Parts Repaired . | . . . Time . | . . . Parts Recycled . | . . . Recycled Matter . | . . . Retrieved Matter . | . . . Retrieved Components . | . . . Parts Scanalyzed . | . . . Part Schematics Acquired . | . . . Parts Damaged . | . . . Bothacking | -11 -10 -10 ------------ Run | Yrd Mat Sub Used RIF Installer . | . . . Robots Hacked . | . . . Non-combat . | . . . Combat . | . . . Robot Hacks Applied . | . . . Relay Couplers Released . | . . . Fabnet Peak Effective % . | . . . Robots Rewired . | . . . Allies Hacked . | . . . Hacks Repelled . | . . . Allies | -11 -10 -10 -------- Run | Yrd Mat Sub Total Allies . | . . . Largest Group . | . . . Highest-Rated Group . | . . . Highest-Rated Ally . | . . . Total Orders . | . . . Ally Attacks . | . . . Total Damage . | . . . Kills . | . . . Allies Corrupted . | . . . Allies Melted . | . . . Intel | -11 -10 -10 ------- Run | Yrd Mat Sub Active Infowar (turns) . | . . . Robot Analysis Total . | . . . Derelict Logs Recovered . | . . . Drone Launches . | . . . Drone Recoveries . | . . . Exploration | -11 -10 -10 ------------- Run | Yrd Mat Sub Turns Passed 1263 | 107 511 645 Spaces Moved 557 | 62 142 353 Core 6 | 6 . . Treads 551 | 56 142 353 Legs . | . . . Wheels . | . . . Hover . | . . . Flight . | . . . Fastest Speed 50 | 50 160 160 Average Speed 158 | 150 160 160 Slowest Speed 160 | 160 160 160 Overloaded Moves . | . . . Propulsion Burnouts . | . . . Robots Hopped . | . . . Potential Cave-ins . | . . . Cave-ins Triggered . | . . . Exploration Rate (%) 14 | 4 28 11 Regions Visited 2 Branch Regions 1 Pre-discovered Areas 1 | . . 1 Known Exits Taken . | . . . Unknown Exits Taken 2 | 1 1 . Scrap Searched . | . . . Spaces Dug . | . . . Terrain Destroyed 52 | . 43 9 Melee . | . . . Projectile . | . . . AOE 52 | . 43 9 Terrain Rammed . | . . . Walls Destroyed . | . . . Machines Disabled . | . . . Actions | -11 -10 -10 --------- Run | Yrd Mat Sub Total 886 | 72 406 408 Wait 269 | . 234 35 Move 555 | 61 141 353 Hop . | . . . Pick Up 20 | 5 12 3 Fast Attach 6 | 5 1 . Attach 7 | . 5 2 Detach 1 | . . 1 Swap . | . . . Drop 1 | . 1 . Fire 27 | 1 12 14 Melee . | . . . Ram . | . . . Kick . | . . . Crush . | . . . Escape Stasis . | . . . Rewire . | . . . Trap . | . . . Miscellaneous . | . . . Route ------- -11/Scrapyard -10/Materials -10/Subcaves History --------- Turn | Location | Event 13 | -11/Scrapyard | Discovered new exit (range 16) 108 | -11/Scrapyard | Entered Materials 302 | -10/Materials | Build established: Mutant 588 | -10/Materials | Discovered new exit (range 7) 608 | -10/Materials | Derelicts attacked the area 615 | -10/Materials | Core integrity fell below 50% 619 | -10/Materials | Entered Subcaves 620 | -10/Subcaves | Approached by a straggling Scientist 644 | -10/Subcaves | Lost 3 parts (1p1n1w) 708 | -10/Subcaves | Learned location of Zion (-7) 708 | -10/Subcaves | Met a Zionite searching for "candidates" 966 | -10/Subcaves | Shifting Twisted Machinery released Flamer 968 | -10/Subcaves | Shifting Twisted Machinery released Sub. Laser 1003 | -10/Subcaves | Core integrity fell below 20% 1264 | -10/Subcaves | Destroyed by ZP-7GJ(R) with Subdweller Laser Last Messages --------------- 00969_ Heat Sink fries itself beyond repair. 00971_ Acquired Flamer. 48-80H(c): "I think it's somewhere southeast of here" 01003_ G-47 Trooper destroyed. 01013_ Subatomizers dissect the Aluminum Leg. 01014_ G-34 Mercenary destroyed. 01019_ Lgt. Nuclear Core fries itself beyond repair. 01021_ Aluminum Leg fries itself beyond repair. 01021_ Acquired Sml. Laser. 01022_ Acquired 44 matter. 01026_ Ion Engine fries itself beyond repair. 48-80H(c): "I think it's somewhere southeast of here" 01027_ Heat Sink fries itself beyond repair. 48-80H(c): "I think it's somewhere southeast of here" 01101_ Acquired Sub. Laser. 48-80H(c): "I think it's somewhere east of here" 48-80H(c): "I think it's somewhere southeast of here" 01233_ Acquired 19 matter. 01262_ ZP-7GJ(R) suffers critical hit (Burn). 01263_ ZP-7GJ(R) overheating. Map ----- +----------------------------------------------------+ | ????????????????????????????????????????????? | | ????????????????????????????????????????????? | | ????????????????????????????????????????????? | | ????????????????????????????????????????????? | | ????????????????????????????????????????????? | | ????????????????????????????????????????????? | | ????????????????????????????????????????????? | | ????????????????????????????????????????????? | | ????????????????????????????????????????????? | | ????????????????????????????????????????????? | | ???????????????? ????????????????????????? | | ???????????????? ????????????????????????? | | ???????????????? ????????????????????????? | | ???????????????? ????????????????????????? | | ????????????????# ????????????????????????? | | ????????????????# ????????????????????????? | | ???????????????## ????????????###?????????? | | ???????????????# ????????????#"##????????? | | ???????????????? #????????????# #????????? | | ???????????????## #????????????# #????????? | | ???????????????# ???????????## ##???????? | | ???????????????# ??????????## #???????? | | ???????????????# ##########?# ##???????? | | ???????????????# # # ### "#????????? | | ???????????????# ### "#????????? | | ????????????????# R@ #?# "#????????? | | ????????????????## # # ##?# "#????????? | | ????????????????## #### #### "##???????? | | ???????????????## % ## """ #???????? | | ???????????????# """ #???????? | | ??????????????## #### ## #???????? | | ??????????????# #### #??# ####???????? | | ??????????????# % #??## #### ###???????? | | ??????????????# ##??## # ## ##??????? | | ??????????????## #???# #####??? | | ???????????????#### "#???### # ## #??? | | ??????????????????# "##????######### ##?? | | ?????????????????## "#????????????## ## ##? | | ??????????????#### "#?????????????##### ## | | ??????????????# " #?????????????????## # | | ??????????????## "" ##??????????????????## | | ???????????????# ""#????????????????????## | | ???????????????# ## "#?????????????????????# | | ???????????????##?# ##?????????????????????## | | ??????????????????# #??????????????????????# | | ?????????????????## ##??????????????????????# | | ?????????????????# ##??????????????????????# | | ?????????????????## #??????????????????????# | | ?????????????????# #??????????????????????# | | ?????????????????## ##??????????????????????? | +----------------------------------------------------+ Best States ------------- Heat Dissipation 25 Energy Generation 10 Energy Capacity 125 Matter Stores 268 Matter Capacity 300 Sight Range 16 Terrain Scan Density 10 Evasion (%) 40 Targeting Accuracy 6 Recoil Reduction 2 Item Schematics ----------------- None Robot Schematics ------------------ None Fabricated ------------ Nothing Repaired ---------- Nothing Alien Tech Used ----------------- None Achievements -------------- None Challenges ------------ None Game ------ Seed AntigravDroneFlamer Manual? 0 Play Time 00:05:47 Cumulative 335.6 hours Start 2025.07.04 @ 11:18:23 End 2025.07.04 @ 11:22:47 Sessions 1 Manual Loads 0 Difficulty Rogue Special Mode None Game No. 323 Rogue 287 Adventurer 36 Explorer 0 Win Type - Total 12 Types 4/0/8/0/0/0/0/0/0/0 Lore% 70 Gallery% 82 Achievement% 74 Wizard Run 0 Options --------- Layout 0 ASCII 0 Keyboard 0 Movement Mouse Keybinds 0 Fullscreen 1 Font 18/SmallcapsGlow Map View 76x50 Zoom Use 0% Tactical HUD 1 Map Filters NONE Filters SHIFT_HUE(315) Steam 1 RUN: 6e63ed66-392f-4017-9ade-eddf201b0d60